Workbook

Sheet MOSAIC
B17: MOSAIC is a health economic modelling collective established to provide rapid policy guidance and public engagement for the South African Covid-19 response. Members are drawn from the Health Economics Unit, School of Public Health and Family Medicine and Alan J Flisher Centre for Public Mental Health at the University of Cape Town, with the Health Systems Research Unit at the Medical Research Council. In alphabetical order, MOSAIC includes Donela Besada MPH; Susan Cleary PhD; Emmanuelle Daviaud MSc; Sumaiyah Docrat MPH; Darshini Govindasamy PhD; Geetesh Solanki DrPH; Cynthia Tamandjou PhD; and Tommy Wilkinson MSc
B18: Reference for this model:
B19: MOSAIC, 2020 "A model to assess the cost-effectiveness of dexamethasone for admitted Covid-19 patients in South Africa" Health Economics Unit, Alan J Flisher Centre for Public Mental Health (UCT) and Health Systems Research Unit (SAMRC), Cape Town.

Sheet Overview
B1: OVERVIEW
B2: 1. This excel based cost-effectiveness model is provided to allow for full transparency to the end user
B3: 2. Sensitivity analysis can be done by changing the relevant variable(s) or input(s) in "Inputs & Results"
B4: 3. The remaining worksheets in this model provide model workings and background information
B5: 4. The function of each worksheet is described below
B7: Worksheet name | C7: Function | D7: Colour-coding
B8: Inputs & Results | C8: Provides model results and an interface for user driven sensitivity analysis | D8: Green
B9: 1. Strategy Calcs | C9: Formulae for status quo model | D9: Red
B10: 2. Strategy Calcs | C10: Formulae for dexamethasone model | D10: Red
B11: State Trans Diag | C11: Diagrams of model structure | D11: Red
B12: Public Hospital Costs | C12: Summarizes public hospital unit cots | D12: Blue
B13: Dexamethasone Cost | C13: Summarizes essential medicine list pricing and contracts for dexamethasone | D13: Blue
B14: Inpatient Deaths & Utlisation | C14: Summarizes meta-analysis of inpatient inputs | D14: Blue

Sheet Inputs & Results
B1: INSTRUCTIONS
B2: 1. Cost-effectiveness results are summarized in 'MODEL RESULTS'
B3: 2. Using the 'INPUTS' table, conduct sensitivity analysis and generate new cost-effectiveness results by changing the green highlighted "Editable Value(s)" in column C
B4: 3. As you change inputs, see whether and how these changes impact on 'MODEL RESULTS'
B5: 4. Potential ranges for sensitivity are provided in columns F and G
B6: 5. Methods and data sources for 'INPUTS' are summarized in columns H and I
B8: MODEL STRATEGIES
B9: This model assesses costs and outcomes for admitted severe and critical Covid-19 patients from time of admission to discharge or death
B10: Two competing strategies are modelled:
B11: 1. The "status quo" summarizes costs and outcomes for patients assuming usual care (no dexamethasone)
B12: 2. The "dexamethasone" comparator summarizes costs and outcomes for patients assuming usual care with dexamethasone at 6mg/day over 10 days
B14: MODEL OUTCOMES
B15: Cost: mean cost (general ward and ICU) per admitted patient from the health care provider's perspective
B16: Health outcomes: mean DALYs and deaths per admitted patient
B17: Other: mean ICU days and inpatient days per admitted patient
B19: MODEL RESULTS
B20: Strategy | C20: Cost | D20: DALYs | E20: Deaths | F20: ICU Days | G20: Inpatient Days | H20: Incr. Cost per DALY Averted | I20: Incr. Cost per Death Averted
B21: Status quo | C21: ='1. Strategy Calcs'!I11 -> 93868.42163 | D21: ='1. Strategy Calcs'!K11 -> 1.10254705 | E21: ='1. Strategy Calcs'!M11 -> 0.2003 | F21: ='1. Strategy Calcs'!O11 -> 1.848 | G21: ='1. Strategy Calcs'!Q11 -> 16.9975
B22: Dexamethasone | C22: ='2. Strategy Calcs'!I11 -> 94029.27163 | D22: ='2. Strategy Calcs'!K11 -> 0.796687873 | E22: ='2. Strategy Calcs'!M11 -> 0.14323 | F22: ='2. Strategy Calcs'!O11 -> 1.848 | G22: ='2. Strategy Calcs'!Q11 -> 16.9975 | H22: =(C22-C21)/(D21-D22) -> 525.895615 | I22: =(C22-C21)/(E21-E22) -> 2818.468547
B24: INPUTS | C24: Edit green cells
B25: Description | C25: Editable Value | D25: Reference in TreeAge | E25: Original Value | F25: Low Value | G25: High Value | H25: Method or assumption | I25: Reference or source
B26: Unit costs
B27: Cost per inpatient day public | C27: 3727.35 | D27: cIPDpub | E27: ='Public Hospital Costs'!L8 -> 3727.352694 | H27: Average weighted expenditure per patient day equivalent | I27: See 'Public Hospital Costs' worksheet
B28: Cost per ICU day public | C28: 16511.25 | D28: cICUpub | E28: ='Public Hospital Costs'!L9 -> 16511.25238 | F28: =E28-0.5*E28 -> 8255.626189 | G28: =E28*1.5 -> 24766.87857 | H28: Average weighted expenditure per patient day equivalent inflated using ICU/IPD price differential in private sector | I28: See 'Public Hospital Costs' worksheet
B29: Cost per course of dexamethasone | C29: 160.85 | D29: cDex | E29: ='Dexamethasone Cost'!I8 -> 160.8484153 | H29: 6mg/day over 10 days = 20 x 4mg vials @ weighted EML price of R6.29 per vial plus R35.00 dispensing fee | I29: See 'Dexamethasone Cost' worksheet
B30: Utilisation
B31: Utilisation of inpatient days | C31: 21.25 | D31: uIPD | E31: ='Inpatient Deaths & Utilisation'!D62 -> 21.25 | F31: ='Inpatient Deaths & Utilisation'!E62 -> 7.25 | G31: ='Inpatient Deaths & Utilisation'!F62 -> 43 | H31: Literature review | I31: See 'Inpatient Deaths & Utilisation' worksheet
B32: Utilisation of ICU days | C32: 8.8 | D32: uICU | E32: ='Inpatient Deaths & Utilisation'!D55 -> 8.8 | F32: ='Inpatient Deaths & Utilisation'!E55 -> 4.3 | G32: ='Inpatient Deaths & Utilisation'!F55 -> 13.3 | H32: Literature review | I32: See 'Inpatient Deaths & Utilisation' worksheet
B33: Utilisation of general ward days for those using ICU | C33: 1 | D33: uIPDICU | E33: ='Inpatient Deaths & Utilisation'!D66 -> 1 | F33: ='Inpatient Deaths & Utilisation'!E66 -> 0 | G33: ='Inpatient Deaths & Utilisation'!F66 -> 3 | H33: Literature review | I33: See 'Inpatient Deaths & Utilisation' worksheet
B34: Proportion needing ICU | C34: 0.21 | D34: pICU | E34: ='Inpatient Deaths & Utilisation'!F43 -> 0.2073756655 | F34: ='Inpatient Deaths & Utilisation'!F44 -> 0.05004549591 | G34: ='Inpatient Deaths & Utilisation'!F45 -> 0.5 | H34: Literature review | I34: See 'Inpatient Deaths & Utilisation' worksheet
B35: Mortality rates
B36: Proportion dying from general ward | C36: 0.11 | D36: pdead | E36: ='Inpatient Deaths & Utilisation'!G27 -> 0.1116929866 | F36: ='Inpatient Deaths & Utilisation'!G28 -> 0 | G36: ='Inpatient Deaths & Utilisation'!G29 -> 0.130952381 | H36: Literature review | I36: See 'Inpatient Deaths & Utilisation' worksheet
B37: Proportion dying from ICU | C37: 0.54 | D37: pdeadICU | E37: ='Inpatient Deaths & Utilisation'!H15 -> 0.5353437 | F37: ='Inpatient Deaths & Utilisation'!H16 -> 0.24 | G37: ='Inpatient Deaths & Utilisation'!H17 -> 0.875 | H37: Literature review | I37: See 'Inpatient Deaths & Utilisation' worksheet
B38: Rate ratio reduction in deaths for those in ICU and ventilated, with dexamethasone | C38: 0.65 | D38: rrdexICU | E38: 0.65 | F38: 0.48 | G38: 0.88 | H38: Secondary data from randomized control trial | I38: https://www.recoverytrial.net/files/recovery_dexamethasone_statement_160620_v2final.pdf
B39: Rate ratio reduction in deaths for those in general wards on oxygen, with dexamethasone | C39: 0.8 | D39: rrdexgen | E39: 0.8 | F39: 0.67 | G39: 0.96 | H39: Secondary data from randomized control trial | I39: https://www.recoverytrial.net/files/recovery_dexamethasone_statement_160620_v2final.pdf
B40: Disability weights, duration of disability and years of life lost
B41: Disability weight for severe patients | C41: 0.13 | D41: DWsevere | E41: 0.13 | F41: 0.09 | G41: 0.19 | H41: Disability weight for severe lower respiratory tract infeciton | I41: Saloman et al 2017
B42: Disability weight for critical patients | C42: 0.41 | D42: DWcritical | E42: 0.408 | F42: 0.273 | G42: 0.556 | H42: Disability weight for ARDS | I42: Saloman et al 2017
B43: Duration of illness in severe patients | C43: 0.13 | D43: dursevere | E43: =1.5/12 -> 0.125 | F43: =0.75/12 -> 0.0625 | G43: =2.25/12 -> 0.1875 | H43: 1.5 months (range 0.75-2.25); used in DALY calculation | I43: Assumption
B44: Duration of illness in critical patients | C44: 0.17 | D44: durcritical | E44: =2/12 -> 0.1666666667 | F44: =1/12 -> 0.08333333333 | G44: =3/12 -> 0.25 | H44: 2 months (range 1-3); only used in DALY calculation | I44: Assumption
B45: Duration of illness prior to death | C45: 0.04 | D45: durdeath | E45: =0.5/12 -> 0.04166666667 | F45: =0.25/12 -> 0.02083333333 | G45: =0.75/12 -> 0.0625 | H45: 0.5 months (range 0.25-0.75); used in DALY calculation | I45: Assumption
B46: Years of life lost if dying from Covid | C46: 5.4 | D46: YLL | E46: 5.4 | I46: PANDA, 2020
B47: Other
B48: Cost-effectiveness threshold per DALY averted | E48: 38465.46 | H48: Used to assess value for money; if ICER<CET intervention potentially cost-effective | I48: Edoka et al, 2020

Sheet 1. Strategy Calcs
B1: Strategy | C1: 1 | D1: Status quo
B2: States | C2: All
U3: Severe patients general ward - State 1.1 | AD3: Critical patients ICU - State 1.2 | AN3: Recover - State 1.3 | AO3: Die - State 1.4
D4: Cohort State Proportions | U4: Cohort % | X4: Payoff 1 - Provider costs (ZAR) | Y4: Payoff 2 - DALYs | AB4: Payoff 3 - Deaths | AC4: Payoff 5 - Count of inpatient days | AD4: Cohort % | AG4: Payoff 1 - Provider costs (ZAR) | AH4: Payoff 2 - DALYs | AK4: Payoff 3 - Deaths | AL4: Payoff 4 - Count of ICU days | AM4: Payoff 5 - Count of inpatient days | AN4: Cohort % | AO4: Cohort %
B5: Cycle | D5: Severe patients general ward | E5: Critical patients ICU | F5: Recover | G5: Die | H5: Payoff 1 - Provider costs (ZAR) | J5: Payoff 2 - DALYs | L5: Payoff 3 - Deaths | N5: Payoff 4 - Count of ICU days | P5: Payoff 5 - Count of inpatient days | S5: Checksum of Cohort % | U5: 1.1 State | V5: 1.1.1 Transition | W5: 1.1.2 Transition | X5: 1.1 State | Y5: 1.1.1 Transition | Z5: 1.1.2 Transition | AA5: State/Trans | AB5: 1.1.2 Transition | AC5: 1.1 State | AD5: 1.2 State | AE5: 1.2.1 Transition | AF5: 1.2.2 Transition | AG5: 1.2 State | AH5: 1.2.1 Transition | AI5: 1.2.2 Transition | AJ5: State/Trans | AK5: 1.2.2 Transition | AL5: 1.2 State | AM5: 1.2 State | AN5: 1.3 State | AO5: 1.4 State
H6: No Discount | I6: Cum No Disc | J6: No Discount | K6: Cum No Disc | L6: No Discount | M6: Cum No Disc | N6: No Discount | O6: Cum No Disc | P6: No Discount | Q6: Cum No Disc | U6: Severe patients general ward | V6: Recover | W6: Die | X6: Severe patients general ward | Y6: Recover | Z6: Die | AA6: State Total | AB6: Die | AC6: Severe patients general ward | AD6: Critical patients ICU | AE6: Recover | AF6: Die | AG6: Critical patients ICU | AH6: Recover | AI6: Die | AJ6: State Total | AK6: Die | AL6: Critical patients ICU | AM6: Critical patients ICU | AN6: Recover | AO6: Die
B8: 0 | D8: =1-pICU -> 0.79 | E8: =pICU -> 0.21 | F8: =0 -> 0 | G8: =0 -> 0 | H8: =X8+AG8 -> 93868.42163 | I8: =H8 -> 93868.42163 | J8: ='1. Strategy Calcs'!AA8 + '1. Strategy Calcs'!AJ8 -> 1.10254705 | K8: =J8 -> 1.10254705 | L8: ='1. Strategy Calcs'!AB8 + '1. Strategy Calcs'!AK8 -> 0.2003 | M8: =L8 -> 0.2003 | N8: ='1. Strategy Calcs'!AL8 -> 1.848 | O8: =N8 -> 1.848 | P8: ='1. Strategy Calcs'!AC8 + '1. Strategy Calcs'!AM8 -> 16.9975 | Q8: =P8 -> 16.9975 | S8: =SUM(D8:G8) -> 1 | U8: ='1. Strategy Calcs'!D8 -> 0.79 | V8: =U8*(1-(pdead)) -> 0.7031 | W8: =U8*(pdead) -> 0.0869 | X8: =U8*(cIPDpub*uIPD) -> 62572.88813 | Y8: =V8*(DWsevere*dursevere) -> 0.01188239 | Z8: =W8*(YLL+(DWsevere*durdeath)) -> 0.46971188 | AA8: =SUM(Y8:Z8) -> 0.48159427 | AB8: =W8*(1) -> 0.0869 | AC8: =U8*(uIPD) -> 16.7875 | AD8: ='1. Strategy Calcs'!E8 -> 0.21 | AE8: =AD8*(1-(pdeadICU)) -> 0.0966 | AF8: =AD8*(pdeadICU) -> 0.1134 | AG8: =AD8*(cICUpub*uICU+cIPDpub*uIPDICU) -> 31295.5335 | AH8: =AE8*(DWcritical*durcritical) -> 0.00673302 | AI8: =AF8*(YLL+(DWcritical*durdeath)) -> 0.61421976 | AJ8: =SUM(AH8:AI8) -> 0.62095278 | AK8: =AF8*(1) -> 0.1134 | AL8: =AD8*(uICU) -> 1.848 | AM8: =AD8*(uIPDICU) -> 0.21 | AN8: ='1. Strategy Calcs'!F8 -> 0 | AO8: ='1. Strategy Calcs'!G8 -> 0
B9: 1 | D9: =U9 -> 0 | E9: =AD9 -> 0 | F9: =AN9 -> 0.7997 | G9: =AO9 -> 0.2003 | H9: =X9+AG9 -> 0 | I9: =I8+H9 -> 93868.42163 | J9: ='1. Strategy Calcs'!AA9 + '1. Strategy Calcs'!AJ9 -> 0 | K9: =K8 + J9 -> 1.10254705 | L9: ='1. Strategy Calcs'!AB9 + '1. Strategy Calcs'!AK9 -> 0 | M9: =M8 + L9 -> 0.2003 | N9: ='1. Strategy Calcs'!AL9 -> 0 | O9: =O8 + N9 -> 1.848 | P9: ='1. Strategy Calcs'!AC9 + '1. Strategy Calcs'!AM9 -> 0 | Q9: =Q8 + P9 -> 16.9975 | S9: =SUM(D9:G9) -> 1 | U9: =0 -> 0 | X9: =0 -> 0 | AA9: =SUM(Y9:Z9) -> 0 | AC9: =0 -> 0 | AD9: =0 -> 0 | AG9: =0 -> 0 | AJ9: =SUM(AH9:AI9) -> 0 | AL9: =0 -> 0 | AM9: =0 -> 0 | AN9: =0 + '1. Strategy Calcs'!V8 + '1. Strategy Calcs'!AE8 + AN8 -> 0.7997 | AO9: =0 + '1. Strategy Calcs'!W8 + '1. Strategy Calcs'!AF8 + AO8 -> 0.2003
B11: Total | H11: =SUM(H8:H9) -> 93868.42163 | I11: =I9 -> 93868.42163 | J11: =SUM(J8:J9) -> 1.10254705 | K11: =K9 -> 1.10254705 | L11: =SUM(L8:L9) -> 0.2003 | M11: =M9 -> 0.2003 | N11: =SUM(N8:N9) -> 1.848 | O11: =O9 -> 1.848 | P11: =SUM(P8:P9) -> 16.9975 | Q11: =Q9 -> 16.9975

Sheet 2. Strategy Calcs
B1: Strategy | C1: 2 | D1: Dexamethasone
B2: States | C2: All
U3: Severe patients general ward - State 2.1 | AD3: Critical patients ICU - State 2.2 | AN3: Recover - State 2.3 | AO3: Die - State 2.4
D4: Cohort State Proportions | U4: Cohort % | X4: Payoff 1 - Provider costs (ZAR) | Y4: Payoff 2 - DALYs | AB4: Payoff 3 - Deaths | AC4: Payoff 5 - Count of inpatient days | AD4: Cohort % | AG4: Payoff 1 - Provider costs (ZAR) | AH4: Payoff 2 - DALYs | AK4: Payoff 3 - Deaths | AL4: Payoff 4 - Count of ICU days | AM4: Payoff 5 - Count of inpatient days | AN4: Cohort % | AO4: Cohort %
B5: Cycle | D5: Severe patients general ward | E5: Critical patients ICU | F5: Recover | G5: Die | H5: Payoff 1 - Provider costs (ZAR) | J5: Payoff 2 - DALYs | L5: Payoff 3 - Deaths | N5: Payoff 4 - Count of ICU days | P5: Payoff 5 - Count of inpatient days | S5: Checksum of Cohort % | U5: 2.1 State | V5: 2.1.1 Transition | W5: 2.1.2 Transition | X5: 2.1 State | Y5: 2.1.1 Transition | Z5: 2.1.2 Transition | AA5: State/Trans | AB5: 2.1.2 Transition | AC5: 2.1 State | AD5: 2.2 State | AE5: 2.2.1 Transition | AF5: 2.2.2 Transition | AG5: 2.2 State | AH5: 2.2.1 Transition | AI5: 2.2.2 Transition | AJ5: State/Trans | AK5: 2.2.2 Transition | AL5: 2.2 State | AM5: 2.2 State | AN5: 2.3 State | AO5: 2.4 State
H6: No Discount | I6: Cum No Disc | J6: No Discount | K6: Cum No Disc | L6: No Discount | M6: Cum No Disc | N6: No Discount | O6: Cum No Disc | P6: No Discount | Q6: Cum No Disc | U6: Severe patients general ward | V6: Recover | W6: Die | X6: Severe patients general ward | Y6: Recover | Z6: Die | AA6: State Total | AB6: Die | AC6: Severe patients general ward | AD6: Critical patients ICU | AE6: Recover | AF6: Die | AG6: Critical patients ICU | AH6: Recover | AI6: Die | AJ6: State Total | AK6: Die | AL6: Critical patients ICU | AM6: Critical patients ICU | AN6: Recover | AO6: Die
B8: 0 | D8: =1-pICU -> 0.79 | E8: =pICU -> 0.21 | F8: =0 -> 0 | G8: =0 -> 0 | H8: ='2. Strategy Calcs'!X8 + '2. Strategy Calcs'!AG8 -> 94029.27163 | I8: =H8 -> 94029.27163 | J8: ='2. Strategy Calcs'!AA8 + '2. Strategy Calcs'!AJ8 -> 0.796687873 | K8: =J8 -> 0.796687873 | L8: ='2. Strategy Calcs'!AB8 + '2. Strategy Calcs'!AK8 -> 0.14323 | M8: =L8 -> 0.14323 | N8: ='2. Strategy Calcs'!AL8 -> 1.848 | O8: =N8 -> 1.848 | P8: ='2. Strategy Calcs'!AC8 + '2. Strategy Calcs'!AM8 -> 16.9975 | Q8: =P8 -> 16.9975 | S8: =SUM(D8:G8) -> 1 | U8: ='2. Strategy Calcs'!D8 -> 0.79 | V8: =U8*(1-(pdead*rrdexgen)) -> 0.72048 | W8: =U8*(pdead*rrdexgen) -> 0.06952 | X8: =U8*((cIPDpub*uIPD)+cDex) -> 62699.95963 | Y8: =V8*(DWsevere*dursevere) -> 0.012176112 | Z8: =W8*(YLL+(DWsevere*durdeath)) -> 0.375769504 | AA8: =SUM(Y8:Z8) -> 0.387945616 | AB8: =W8*(1) -> 0.06952 | AC8: =U8*(uIPD) -> 16.7875 | AD8: ='2. Strategy Calcs'!E8 -> 0.21 | AE8: =AD8*(1-(pdeadICU*rrdexICU)) -> 0.13629 | AF8: =AD8*(pdeadICU*rrdexICU) -> 0.07371 | AG8: =AD8*(cICUpub*uICU+cIPDpub*uIPDICU+cDex) -> 31329.312 | AH8: =AE8*(DWcritical*durcritical) -> 0.009499413 | AI8: =AF8*(YLL+(DWcritical*durdeath)) -> 0.399242844 | AJ8: =SUM(AH8:AI8) -> 0.408742257 | AK8: =AF8*(1) -> 0.07371 | AL8: =AD8*(uICU) -> 1.848 | AM8: =AD8*(uIPDICU) -> 0.21 | AN8: ='2. Strategy Calcs'!F8 -> 0 | AO8: ='2. Strategy Calcs'!G8 -> 0
B9: 1 | D9: ='2. Strategy Calcs'!U9 -> 0 | E9: ='2. Strategy Calcs'!AD9 -> 0 | F9: ='2. Strategy Calcs'!AN9 -> 0.85677 | G9: ='2. Strategy Calcs'!AO9 -> 0.14323 | H9: ='2. Strategy Calcs'!X9 + '2. Strategy Calcs'!AG9 -> 0 | I9: =I8 + H9 -> 94029.27163 | J9: ='2. Strategy Calcs'!AA9 + '2. Strategy Calcs'!AJ9 -> 0 | K9: =K8 + J9 -> 0.796687873 | L9: ='2. Strategy Calcs'!AB9 + '2. Strategy Calcs'!AK9 -> 0 | M9: =M8 + L9 -> 0.14323 | N9: ='2. Strategy Calcs'!AL9 -> 0 | O9: =O8 + N9 -> 1.848 | P9: ='2. Strategy Calcs'!AC9 + '2. Strategy Calcs'!AM9 -> 0 | Q9: =Q8 + P9 -> 16.9975 | S9: =SUM(D9:G9) -> 1 | U9: =0 -> 0 | X9: =0 -> 0 | AA9: =SUM(Y9:Z9) -> 0 | AC9: =0 -> 0 | AD9: =0 -> 0 | AG9: =0 -> 0 | AJ9: =SUM(AH9:AI9) -> 0 | AL9: =0 -> 0 | AM9: =0 -> 0 | AN9: =0 + '2. Strategy Calcs'!V8 + '2. Strategy Calcs'!AE8 + AN8 -> 0.85677 | AO9: =0 + '2. Strategy Calcs'!W8 + '2. Strategy Calcs'!AF8 + AO8 -> 0.14323
B11: Total | H11: =SUM(H8:H9) -> 94029.27163 | I11: =I9 -> 94029.27163 | J11: =SUM(J8:J9) -> 0.796687873 | K11: =K9 -> 0.796687873 | L11: =SUM(L8:L9) -> 0.14323 | M11: =M9 -> 0.14323 | N11: =SUM(N8:N9) -> 1.848 | O11: =O9 -> 1.848 | P11: =SUM(P8:P9) -> 16.9975 | Q11: =Q9 -> 16.9975

Sheet State Trans Diag
A1: State Transition Diagram of Strategy: | B1: Status quo | L1: Tree Diagram
A23: State Transition Diagram of Strategy: | B23: Dexamethasone
B25: Same As | C25: Status quo

Sheet Public Hospital Costs
A1: Cost per inpatient day
B2: Exp per inpatient day (2020) / Source Health Systems Trust (2016/17 prices inflated to 2020)
A3: Hospital Level | B3: EC | C3: FS | D3: GT | E3: KZ | F3: LP | G3: MP | H3: NC | I3: NW | J3: WC | K3: Usable beds | L3: National
A4: Central Hospitals | B4: 5873.613653 | C4: 7464.935356 | D4: 4782.013639 | E4: 9335.920702 | J4: 6057.771027 | K4: 8222 | L4: =AVERAGE(B4:J4) -> 6702.850875
A5: Regional Hospitals | B5: 2367.295675 | C5: 3298.575702 | D5: 3339.677627 | E5: 3808.981416 | F5: 3501.119972 | G5: 3448.276015 | I5: 3203.424852 | J5: 3548.099019 | K5: 19936 | L5: =AVERAGE(B5:J5) -> 3314.431285
A6: Tertiary Hospitals | B6: 3524.12172 | C6: 3841.350903 | D6: 3798.844751 | E6: 5162.201585 | F6: 4065.748204 | G6: 3771.886248 | H6: 5389.65304 | I6: 3337.349588 | J6: 6859.350904 | K6: 10393 | L6: =AVERAGE(B6:J6) -> 4416.722994
A7: District Hospitals | B7: 2747.709317 | C7: 2914.031624 | D7: 3371.143352 | E7: 3048.428601 | F7: 3497.674284 | G7: 2718.366743 | H7: 2971.824958 | I7: 2801.459734 | J7: 2537.558849 | K7: 30351 | L7: =AVERAGE(B7:J7) -> 2956.466385
A8: Weighted average (based on usable beds at level of care) | L8: =L4*$K4/SUM($K4:$K7)+L5*$K5/SUM($K4:$K7)+L6*$K6/SUM($K4:$K7)+L7*$K7/SUM($K4:$K7) -> 3727.352694
A9: Cost per ICU day (based on differential between ICU cost and global cost in private sector) | L9: 16511.25238

Sheet Dexamethasone Cost
A1: Master Procurement Catalogue | F1: DATE: 1 June 2020
A2: Contract | B2: Item number | C2: NSN | D2: Description As per Contract | E2: INN Generic | F2: Brand as per Contract | G2: Supplier Name | H2: Supplier Code | I2: Price 15% VAT | J2: Lead time | K2: ATC | L2: VEN | M2: EML/Non-EML | N2: Therapeutic Group | O2: Level of care | P2: Qty Awarded | Q2: Therapeutic Category | R2: EAN 13 Barcode for Unit Pack | S2: EAN 13 Barcode for Shelf Pack or Shrinkwrap | T2: EAN 13 Barcode for Shelf Pack or Shrinkwrap/Single Unit Qty | U2: ITF14 Barcode for Shipper Pack | V2: ITF14 Barcode for Shipper Pack/Single Unit Qty | W2: Pallet Barcode | X2: Pallet Barcode/Single Unit Qty | Y2: NAPPI | Z2: MOQ | AA2: Contract Start Date dd/mm/yyyy | AB2: Contract End Date dd/mm/yyyy | AC2: Contract extended up to dd/mm/yyyy | AD2: Description (WHO INN) | AE2: UNSPSC | AF2: CSD Supplier Number | AG2: Latest Addendum Nr | AH2: Price effective date | AI2: Description As per Contract | AJ2: INN Generic | AK2: Generic Name | AL2: Strength | AM2: Strength Unit | AN2: Form | AO2: PackSize | AP2: PackSize Unit | AQ2: Form | AR2: Split % or limited qty offered
A3: RT297-2019 | B3: 31 | C3: 180075759 | D3: Dexamethasone, 4mg, 1ml, injection | E3: dexamethasone | F3: FRESENIUS DEXAMETHASONE 4 mg/1 ml | G3: FRESENIUS KABI SOUTH AFRICA (PTY) LTD | H3: VAJL3 | I3: 6.32 | J3: 14 | K3: H02AB02 | L3: V | M3: EML | O3: HOSP | P3: 567384 | Q3: Corticosteroid Therapy | R3: 6006267005424 | S3: 6006267005424 | U3: 16006267005421 | Y3: 720206001 | Z3: 10 | AA3: 2019-05-01 | AB3: 2021-04-30 | AD3: Dexamethasone, 4mg, 1ml, injection | AE3: 51422306-00001 | AF3: MAAA0007374 | AG3: 32 | AH3: 2020-05-01 | AI3: =D3 -> Dexamethasone, 4mg, 1ml, injection | AQ3: injection | AR3: 20
A4: RT297-2019 | B4: 31 | C4: 180075759 | D4: Dexamethasone, 4mg, 1ml, injection | E4: dexamethasone | F4: Pharma-Q Dexamethasone 4mg | G4: Pharma-Q (Pty) Ltd | H4: V1NK1 | I4: 5.38 | J4: 14 | K4: H02AB02 | L4: V | M4: EML | O4: HOSP | P4: 17150 | Q4: Corticosteroid Therapy | R4: 6009802416129 | S4: 6009802416129 | U4: 16009802416126 | Y4: 701589001 | Z4: 100 | AA4: 2019-05-01 | AB4: 2021-04-30 | AD4: Dexamethasone, 4mg, 1ml, injection | AE4: 51422306-00001 | AF4: MAAA0016762 | AG4: 33 | AH4: 2020-05-01 | AI4: =D4 -> Dexamethasone, 4mg, 1ml, injection | AQ4: injection | AR4: 60
G6: Weighted average price | I6: =I3*P3/(P3+P4)+I4*P4/(P3+P4) -> 6.292420766
E8: 6mg/day over 10 days = 20 x 4mg vials @ weighted EML price of R6.29 per vial plus R35.00 dispensing fee | I8: =I6*20+35 -> 160.8484153

Sheet Inpatient Deaths & Utilisation
A1: ICU mortality
A2: Data source | B2: Country, city | C2: Total ICU patients | D2: Deaths | E2: Still in ICU | F2: Survived out of ICU | G2: Discharged from hospital | H2: Mortality rate
A3: Intensive care national audit & research centre, UK | B3: UK | C3: 6143 | D3: 2872 | E3: NA | F3: NA | G3: 3271 | H3: =D3/(D3+G3) -> 0.4675240111
A4: Grasselli et al., 2020 | B4: Italy, Lombardy | C4: 1591 | D4: 405 | E4: 920 | F4: NA | G4: 256 | H4: =D4/(D4+G4) -> 0.6127080182
A5: Bhatraju et al., 2020 | B5: USA, Seattle | C5: 24 | D5: 12 | E5: 3 | F5: 4 | G5: 5 | H5: =D5/(D5+F5+G5) -> 0.5714285714
A6: Arentz et al., 2020 | B6: USA, Washington state | C6: 21 | D6: 14 | E6: 5 | F6: 2 | G6: NA | H6: =D6/(D6+F6) -> 0.875
A7: Wang et al., 2020 | B7: China, Wuhan | C7: 36 | D7: 6 | E7: 11 | F7: 10 | G7: 9 | H7: =D7/(D7+F7+G7) -> 0.24
A8: Yang et al., 2020 | B8: China, Wuhan | C8: 52 | D8: 32 | E8: 12 | F8: NA | G8: 8 | H8: =D8/(D8+G8) -> 0.8
A9: Zhou et al., 2020 | B9: China, Wuhan | C9: 50 | D9: 39 | E9: NA | F9: 11 | G9: NA | H9: =D9/(D9+F9) -> 0.78
A10: Klok et al., 2020 | B10: Netherlands | C10: 184 | D10: 41 | E10: =C10-D10-G10 -> 65 | F10: NA | G10: 78 | H10: =D10/(D10+G10) -> 0.3445378151
A11: Richardson et al., 2020 | B11: USA, NY City | C11: 1281 | D11: 291 | E11: 908 | F11: NA | G11: 82 | H11: =D11/(D11+G11) -> 0.7801608579
A12: Zhang et al., 2020 | B12: China, Wuhan | C12: 44 | D12: 9 | E12: 12 | F12: 23 | G12: NA | H12: =D12/(D12+E12) -> 0.4285714286
A13: Cao et al., 2020 | B13: China, Wuhan | C13: 18 | D13: 6 | E13: 0 | F13: NA | G13: 12 | H13: =D13/(D13+G13) -> 0.3333333333
G15: Base value | H15: =(SUMPRODUCT(C3:C13,H3:H13))/(SUM(C3:C13)) -> 0.5353437
G16: Low value | H16: =H7 -> 0.24
G17: High value | H17: =H6 -> 0.875
A19: Inpatient mortality
A20: Data source | B20: Country, city | C20: Total non-ICU patients | D20: Deaths | E20: Still in hospital | F20: Discharged from hospital | G20: Mortality rate
A21: Wang et al., 2020 | B21: China, Wuhan | C21: 102 | D21: 0 | E21: 64 | F21: 38 | G21: =D21/(D21+F21) -> 0
A22: Zhou et al., 2020 | B22: China, Wuhan | C22: 141 | D22: 15 | E22: NA | F22: 126 | G22: =D22/(D22+F22) -> 0.1063829787
A23: Richardson et al., 2020 | B23: USA, NY City | C23: 4419 | D23: 262 | E23: 2186 | F23: 1999 | G23: =D23/(D23+F23) -> 0.1158779301
A24: Cao et al., 2020 | B24: China, Wuhan | C24: 84 | D24: 11 | E24: 0 | F24: 73 | G24: =D24/(D24+F24) -> 0.130952381
A25: Zhang et al., 2020 | B25: China, Wuhan | C25: 177 | D25: 3 | E25: 132 | F25: 42 | G25: =D25/(D25+F25) -> 0.06666666667
F27: Base value | G27: =(SUMPRODUCT(C21:C25,G21:G25))/(SUM(C21:C25)) -> 0.1116929866
F28: Low value | G28: =G21 -> 0
F29: High value | G29: =G24 -> 0.130952381
A31: Proportion of admitted patients needing ICU
A32: Data source | B32: Country, city | C32: Sample size | D32: ICU patients | E32: non-ICU patients | F32: Proportion needing ICU
A33: Wang et al., 2020 | B33: China, Wuhan | C33: 138 | D33: 36 | E33: 102 | F33: =D33/C33 -> 0.2608695652
A34: Zhou et al., 2020 | B34: China, Wuhan | C34: 191 | D34: 50 | E34: 141 | F34: =D34/C34 -> 0.2617801047
A35: Huang et al., 2020 | B35: China, Wuhan | C35: 41 | D35: 13 | E35: 28 | F35: 0.3170731707
A36: Guan et al., 2020 | B36: China | C36: 1099 | D36: 55 | E36: =C36-D36 -> 1044 | F36: 0.05004549591
A37: Yan et al., 2020 | B37: China, Wuhan | C37: 193 | D37: 92 | E37: =C37-D37 -> 101 | F37: 0.4766839378
A38: Aggarwal et al., 2020 | B38: USA | C38: 16 | D38: 8 | E38: 8 | F38: 0.5
A39: Richardson et al., 2020 | B39: USA, New York city | C39: 5700 | D39: 1281 | E39: 4419 | F39: 0.2247368421
A40: Zhang et al., 2020 | B40: China, Wuhan | C40: 221 | D40: 44 | E40: =C40-D40 -> 177 | F40: 0.1990950226
A41: Cao et al., 2020 | B41: China, Wuhan | C41: 102 | D41: 18 | E41: 84 | F41: 0.1764705882
E43: Base value | F43: =(SUMPRODUCT(C33:C41,F33:F41))/(SUM(C33:C41)) -> 0.2073756655
E44: Low | F44: =F36 -> 0.05004549591
E45: High | F45: =F38 -> 0.5
A47: Utilisation of ICU days
A48: Data source | B48: Country, city | C48: Sample size | D48: Median LoS ICU | E48: Low IQR | F48: High IQR
A49: ICNARC UK | B49: England, Wales & Northern Ireland | C49: 6143 | D49: 8 | E49: 4 | F49: 14
A50: Grasseli et al., 2020 | B50: Italy, Lombardy region | C50: 1591 | D50: 9 | E50: 6 | F50: 13
A51: Yang et al., 2020 | B51: China, Wuhan | C51: 52 | D51: 7 | E51: 3 | F51: 11
A52: Zhang et al., 2020 | B52: China, Wuhan | C52: 44 | D52: 11 | E52: 4.5 | F52: 14.5
A53: Bhatraju et al., 2020 | B53: USA, Seattle | C53: 24 | D53: 9 | E53: 4 | F53: 14
B54: Total
C55: Average | D55: =AVERAGE(D49:D53) -> 8.8 | E55: =AVERAGE(E49:E53) -> 4.3 | F55: =AVERAGE(F49:F53) -> 13.3
A57: Utilisation of general ward days
A58: Data source | B58: Country, city | C58: Sample size | D58: Median LoS general ward | E58: Low IQR | F58: High IQR
A59: Wang et al., 2020 | B59: China, Sichuan | C59: 538 | D59: 19 | E59: 3 | F59: 41
A60: Liu et al., 2020 | B60: China, Wuhan | C60: 99 | D60: 23.5 | E60: 11.5 | F60: 45
B61: Total
C62: Average | D62: =AVERAGE(D59:D60) -> 21.25 | E62: =AVERAGE(E59:E60) -> 7.25 | F62: =AVERAGE(F59:F60) -> 43
A64: Utilisation of general ward days for those needing ICU
A65: Data source | B65: Country, city | C65: Sample size | D65: Median LoS general ward before ICU | E65: Low IQR | F65: High IQR
A66: Wang et al., 2020 | B66: China, Wuhan | C66: 36 ICU pts | D66: 1 | E66: 0 | F66: 3

Sheet TP Internal Formulas (hidden)
A1: EXTRAS
A3: This worksheet includes elements from the TreeAge Pro model that are not actively used in the exported Excel model.
A4: They are included here for reference only.
A6: TreeAge Pro Variable Sensitivity Analysis Range
A8: Name | B8: Low | C8: High
A9: ppm | B9: 0 | C9: 1
A10: cIPDpub | B10: 0 | C10: 3727.35
A11: uIPD | B11: 7.25 | C11: 43
A12: uICU | B12: 4.3 | C12: 13.3
A13: cICUpub | B13: 0 | C13: 15914.73
A14: cICUpvt | B14: 0 | C14: 0
A15: pdead | B15: 0 | C15: 0.13
A16: pdeadICU | B16: 0.24 | C16: 0.88
A17: pICU | B17: 0.05 | C17: 0.5
A18: uIPDICU | B18: 0 | C18: 3
A19: YLL | B19: 0 | C19: 0
A20: dursevere | B20: 0.06 | C20: 0.25
A21: durcritical | B21: 0.08 | C21: 0.33
A22: durdeath | B22: 0.02 | C22: 0.06
A23: exmortality | B23: 1e-05 | C23: 4
A24: DWsevere | B24: 0.09 | C24: 0.19
A25: DWcritical | B25: 0.27 | C25: 0.56
A26: uIPDcritical | B26: 4.3 | C26: 13.3
A27: cIPDpvt | B27: 0 | C27: 0
A29: Sensitivity analysis ranges are used in TreeAge Pro, but not in the converted Excel model.
A33: Green cells are editable
A34: Gray cells - no impact on calculation
